fUST/lending_fUST_20241223
["ID","MTS","AMOUNT","RATE_DAILY","PERIOD"]
[346335113,1734898249236,-5890.66,0.0001452,2]
[346335115,1734898249247,-151.0,0.0001452,2]
[346335117,1734898249258,-573.25,0.0001452,2]
[346335120,1734898249269,-151.0,0.0001452,2]
[346335122,1734898249278,-151.0,0.0001452,2]
[346335123,1734898249288,-500.0,0.0001452,2]
[346335126,1734898249298,-4883.13,0.0001452,2]
[346335128,1734898249308,-1047.64,0.0001452,2]
[346335130,1734898249320,-500.0,0.0001452,2]
[346335132,1734898249333,-4342.66,0.0001452,2]
[346335134,1734898249343,-607.58,0.0001452,2]
[346335136,1734898249354,-1227.82,0.0001452,2]
[346335138,1734898249364,-500.0,0.0001452,2]
[346335140,1734898249374,-151.0,0.0001452,2]
[346335142,1734898249385,-151.0,0.0001452,2]
[346335144,1734898249395,-151.0,0.0001452,2]
[346335146,1734898249406,-500.0,0.0001452,2]
[346335148,1734898249417,-1375.84,0.0001452,2]
[346335150,1734898249427,-2388.17,0.0001452,2]
[346335152,1734898249437,-2216.78,0.0001452,2]
[346335154,1734898249448,-1350.81,0.0001452,2]
[346335156,1734898249458,-500.0,0.0001452,2]
[346335158,1734898249468,-1049.15,0.0001452,2]
[346335160,1734898249479,-500.0,0.00014773,2]
[346335162,1734898249489,-500.0,0.00014773,2]
[346335164,1734898249498,-298.18851293,0.00014773,2]
[346335166,1734898249507,-500.0,0.00014773,2]
[346335168,1734898249516,-500.0,0.00014773,2]
[346335170,1734898249528,-500.0,0.00014773,2]
[346335172,1734898249538,-500.0,0.00014773,2]
[346335174,1734898249547,-500.0,0.00014773,2]
[346335176,1734898249556,-500.0,0.00014773,2]
[346335178,1734898249567,-500.0,0.00014773,2]
[346335180,1734898249576,-519.03623925,0.00014773,2]
[346335182,1734898249586,-500.0,0.00014773,2]
[346335184,1734898249595,-500.0,0.00014773,2]
[346335186,1734898249605,-261.24094356,0.00014773,2]
[346335188,1734898249615,-250.92173748,0.00014773,2]
[346335190,1734898249624,-500.0,0.00014773,2]
[346335192,1734898249634,-500.0,0.00014773,2]
[346335194,1734898249644,-500.0,0.00014773,2]
[346335196,1734898249653,-500.0,0.00014773,2]
[346335198,1734898249663,-328.25175958,0.00014773,2]
[346335200,1734898249673,-500.0,0.00014773,2]
[346335202,1734898249682,-500.0,0.00014794,2]
[346335204,1734898249692,-150.09,0.00014794,2]
[346335206,1734898249702,-151.0,0.00014794,2]
[346335208,1734898249711,-151.0,0.00014794,2]
[346335210,1734898249720,-151.0,0.00014794,2]
[346335212,1734898249730,-151.0,0.00014794,2]
[346335214,1734898249739,-151.0,0.00014794,2]
[346335216,1734898249748,-500.0,0.00014794,2]
[346335218,1734898249758,-709.72,0.00014794,2]
[346335220,1734898249767,-564.63,0.00014794,2]
[346335222,1734898249776,-500.0,0.00014794,2]
[346335224,1734898249785,-500.0,0.00014794,2]
[346335226,1734898249795,-500.0,0.00014794,2]
[346335228,1734898249804,-500.0,0.00014794,2]
[346335230,1734898249813,-596.88,0.00014794,2]
[346335232,1734898249822,-509.11,0.00014794,2]
[346335233,1734898249832,-500.0,0.00014794,2]
[346335234,1734898249842,-500.0,0.00014794,2]
[346335235,1734898249851,-500.0,0.00014794,2]
[346335236,1734898249860,-508.19,0.00014794,2]
[346335238,1734898249870,-637.67394347,0.00014794,2]
[346335240,1734898249879,-500.0,0.00014794,2]
[346335242,1734898249888,-500.0,0.00014794,2]
[346335244,1734898249898,-500.0,0.00014794,2]
[346335246,1734898249907,-500.0,0.00014794,2]
[346335247,1734898249916,-500.0,0.00014794,2]
[346335249,1734898249926,-277.479128,0.00014794,2]
[346335251,1734898249935,-500.0,0.00014794,2]
[346335252,1734898249945,-151.0,0.00014794,2]
[346335253,1734898249958,-500.0,0.00014794,2]
[346335254,1734898249968,-500.0,0.00014794,2]
[346335255,1734898249977,-996.41,0.00014794,2]
[346335256,1734898249986,-500.0,0.00014794,2]
[346335257,1734898249996,-552.54315165,0.00014794,2]
[346335258,1734898250005,-552.02,0.00014794,2]
[346335259,1734898250015,-500.0,0.00014794,2]
[346335260,1734898250025,-896.76,0.00014794,2]
[346335261,1734898250034,-643.06,0.00014794,2]
[346335262,1734898250043,-622.12,0.00014794,2]
[346335263,1734898250053,-544.82,0.00014794,2]
[346335264,1734898250061,-500.0,0.00014794,2]
[346335265,1734898250070,-222.052404,0.00014794,2]
[346335266,1734898250080,-500.0,0.00014794,2]
[346335267,1734898250090,-311.638868,0.00014794,2]
[346335268,1734898250099,-311.638868,0.00014794,2]
[346335269,1734898250109,-311.638868,0.00014794,2]
[346335270,1734898250119,-151.139843,0.00014794,2]
[346335271,1734898250129,-311.638868,0.00014794,2]
[346335272,1734898250139,-151.139843,0.00014794,2]
[346335273,1734898250148,-514.67,0.00014794,2]
[346335274,1734898250158,-311.638868,0.00014794,2]
[346335275,1734898250168,-311.638868,0.00014794,2]
[346335276,1734898250177,-311.638868,0.00014794,2]
[346335277,1734898250187,-311.638868,0.00014794,2]
[346335278,1734898250198,-151.139843,0.00014794,2]
[346335279,1734898250209,-151.139843,0.00014794,2]
[346335280,1734898250219,-500.0,0.00014794,2]
[346335281,1734898250229,-1747.14,0.00014794,2]
[346335282,1734898250239,-158.78243336,0.00014794,2]
[346335283,1734898250248,-638.51,0.00014794,2]
[346335284,1734898250258,-500.0,0.00014794,2]
[346335285,1734898250268,-345.44328498,0.00014794,2]
[346335286,1734898250277,-500.0,0.00014794,2]
[346335287,1734898250287,-419.960024,0.00014794,2]
[346335288,1734898250297,-419.960024,0.00014794,2]
[346335289,1734898250307,-419.960024,0.00014794,2]
[346335290,1734898250316,-419.960024,0.00014794,2]
[346335291,1734898250327,-419.960024,0.00014794,2]
[346335292,1734898250337,-419.960024,0.00014794,2]
[346335293,1734898250347,-419.960024,0.00014794,2]
[346335294,1734898250356,-419.960019,0.00014794,2]
[346335295,1734898250366,-500.0,0.00014794,2]
[346335296,1734898250376,-500.0,0.00014794,2]
[346335297,1734898250386,-500.0,0.00014794,2]
[346335298,1734898250396,-1146.78,0.00014794,2]
[346335299,1734898250406,-1384.02,0.00014794,2]
[346335300,1734898250416,-500.0,0.00014794,2]
[346335301,1734898250425,-204.29,0.00014794,2]
[346335302,1734898250436,-1829.53,0.00014794,2]
[346335303,1734898250445,-500.0,0.00014794,2]
[346335304,1734898250457,-151.0,0.00014794,2]
[346335305,1734898250467,-151.0,0.00014794,2]
[346335306,1734898250477,-620.23,0.00014794,2]
[346335307,1734898250487,-151.0,0.00014794,2]
[346335308,1734898250496,-151.0,0.00014794,2]
[346335309,1734898250506,-200.31358,0.00014794,2]
[346335310,1734898250515,-1154.81,0.00014794,2]
[346335311,1734898250527,-1071.92,0.00014794,2]
[346335312,1734898250538,-3377.75,0.00014794,2]
[346335313,1734898250548,-151.0,0.00014794,2]
[346335314,1734898250558,-677.42,0.00014794,2]
[346335315,1734898250569,-500.0,0.00014794,2]
[346335316,1734898250579,-674.98,0.00014794,2]
[346335317,1734898250588,-1484.35,0.00014794,2]
[346335318,1734898250599,-500.0,0.00014794,2]
[346335319,1734898250611,-500.0,0.00014794,2]
[346335320,1734898250621,-500.0,0.00014794,2]
[346335322,1734898250631,-915.03,0.00014794,2]
[346335324,1734898250641,-1120.23,0.00014794,2]
[346335325,1734898250650,-500.0,0.00014794,2]
[346335327,1734898250660,-500.0,0.00014794,2]
[346335329,1734898250669,-645.28,0.00014794,2]
[346335331,1734898250679,-500.0,0.00014794,2]
[346335333,1734898250688,-966.84,0.00014794,2]
[346335335,1734898250698,-500.0,0.00014794,2]
[346335337,1734898250708,-671.49,0.00014794,2]
[346335339,1734898250717,-999.5,0.00014794,2]
[346335341,1734898250727,-151.0,0.00014794,2]
[346335343,1734898250738,-151.0,0.00014794,2]
[346335346,1734898250747,-500.0,0.00014794,2]
[346335348,1734898250757,-151.0,0.00014794,2]
[346335350,1734898250767,-151.0,0.00014794,2]
[346335352,1734898250776,-151.0,0.00014794,2]
[346335354,1734898250786,-151.0,0.00014794,2]
[346335356,1734898250796,-500.0,0.00014794,2]
[346335358,1734898250806,-151.0,0.00014794,2]
[346335360,1734898250816,-1014.49,0.00014794,2]
[346335362,1734898250826,-500.0,0.00014794,2]
[346335364,1734898250836,-1300.26,0.00014794,2]
[346335366,1734898250845,-500.0,0.00014794,2]
[346335368,1734898250855,-559.61,0.00014794,2]
[346335370,1734898250865,-962.09,0.00014794,2]
[346335372,1734898250874,-500.0,0.00014794,2]
[346335374,1734898250884,-500.0,0.00014794,2]
[346335376,1734898250894,-500.0,0.00014794,2]
[346335378,1734898250903,-2050.24,0.00014794,2]
[346335380,1734898250913,-500.0,0.00014794,2]
[346335383,1734898250923,-500.0,0.00014794,2]
[346335385,1734898250932,-500.0,0.00014794,2]
[346335387,1734898250942,-1840.32,0.00014794,2]
[346335389,1734898250953,-500.0,0.00014794,2]
[346335391,1734898250962,-206.090644,0.00014794,2]
[346335393,1734898250971,-206.090644,0.00014794,2]
[346335395,1734898250981,-500.0,0.00014794,2]
[346335397,1734898250990,-206.090644,0.00014794,2]
[346335399,1734898251000,-206.090644,0.00014794,2]
[346335401,1734898251009,-206.090644,0.00014794,2]
[346335403,1734898251019,-206.090644,0.00014794,2]
[346335405,1734898251029,-206.090644,0.00014794,2]
[346335407,1734898251039,-206.090654,0.00014794,2]
[346335409,1734898251048,-619.23,0.00014794,2]
[346335411,1734898251058,-500.0,0.00014794,2]
[346335413,1734898251067,-1286.39,0.00014794,2]
[346335415,1734898251077,-500.0,0.00014794,2]
[346335417,1734898251086,-1768.71,0.00014794,2]
[346335419,1734898251096,-1426.45,0.00014794,2]
[346335421,1734898251106,-564.33,0.00014794,2]
[346335424,1734898251116,-1742.18,0.00014794,2]
[346335426,1734898251128,-500.0,0.00014794,2]
[346335428,1734898251137,-500.0,0.00014794,2]
[346335430,1734898251147,-500.0,0.00014794,2]
[346335432,1734898251156,-500.0,0.00014794,2]
[346335434,1734898251166,-500.0,0.00014794,2]
[346335436,1734898251175,-1026.24,0.00014794,2]
[346335438,1734898251184,-258.127944,0.00014794,2]
[346335440,1734898251194,-258.127944,0.00014794,2]
[346335442,1734898251204,-258.127944,0.00014794,2]
[346335444,1734898251213,-500.0,0.00014794,2]
[346335446,1734898251223,-638.78,0.00014794,2]
[346335448,1734898251232,-258.127944,0.00014794,2]
[346335450,1734898251243,-517.66524731,0.00014794,2]
[346335452,1734898251252,-524.92,0.00014794,2]
[346335454,1734898251262,-258.127944,0.00014794,2]
[346335456,1734898251272,-258.127944,0.00014794,2]
[346335458,1734898251282,-500.0,0.00014794,2]
[346335460,1734898251291,-2282.56,0.00014794,2]
[346335462,1734898251301,-930.06,0.00014794,2]
[346335464,1734898251310,-500.0,0.00014794,2]
[346335466,1734898251319,-568.29,0.00014794,2]
[346335468,1734898251329,-659.14,0.00014794,2]
[346335471,1734898251339,-1232.72,0.00014794,2]
[346335473,1734898251349,-1396.28,0.00014794,2]
[346335475,1734898251359,-437.351639,0.00014794,2]
[346335477,1734898251369,-437.351639,0.00014794,2]
[346335479,1734898251379,-437.351639,0.00014794,2]
[346335481,1734898251388,-437.351639,0.00014794,2]
[346335483,1734898251398,-437.351639,0.00014794,2]
[346335485,1734898251408,-437.351639,0.00014794,2]
[346335486,1734898251417,-500.0,0.00014794,2]
[346335487,1734898251427,-353.971213,0.00014794,2]
[346335488,1734898251436,-353.971213,0.00014794,2]
[346335489,1734898251446,-353.971213,0.00014794,2]
[346335490,1734898251456,-353.971213,0.00014794,2]
[346335491,1734898251466,-353.971213,0.00014794,2]
[346335492,1734898251476,-353.971208,0.00014794,2]
[346335493,1734898251486,-500.0,0.00014794,2]
[346335494,1734898251496,-500.0,0.00014794,2]
[346335495,1734898251506,-500.0,0.00014794,2]
[346335496,1734898251515,-500.0,0.00014794,2]
[346335497,1734898251527,-500.0,0.00014794,2]
[346335498,1734898251537,-20933.72,0.00014794,2]
[346335499,1734898251547,-1915.93,0.00014794,2]
[346335500,1734898251558,-500.0,0.00014794,2]
[346335501,1734898251569,-500.0,0.00014794,2]
[346335502,1734898251579,-11586.64,0.00014794,2]
[346335503,1734898251589,-3634.74,0.00014794,2]
[346335504,1734898251599,-735.37,0.00014794,2]
[346335505,1734898251610,-599.29268707,0.00014794,2]
[346335506,1734898251620,-500.0,0.00014794,2]
[346335507,1734898251630,-609.44,0.00014794,2]
[346335508,1734898251640,-2358.12,0.00014794,2]
[346335509,1734898251650,-16117.57,0.00014794,2]
[346335511,1734898251660,-500.0,0.00014794,2]
[346335513,1734898251670,-649.01,0.00014794,2]
[346335514,1734898251680,-993.7,0.00014794,2]
[346335515,1734898251690,-500.0,0.00014794,2]
[346335517,1734898251701,-8248.44,0.00014794,2]
[346335519,1734898251713,-2313.9,0.00014794,2]
[346335521,1734898251723,-50269.66,0.00014794,2]
[346335523,1734898251733,-500.0,0.00014794,2]
[346335525,1734898251742,-2571.7,0.00014794,2]
[346335527,1734898251752,-500.0,0.00014794,2]
[346335529,1734898251762,-500.0,0.00014794,2]
[346335531,1734898251772,-500.0,0.00014794,2]
[346335533,1734898251781,-500.0,0.00014794,2]
[346335535,1734898251790,-540.65,0.00014794,2]
[346335537,1734898251800,-1127.35,0.00014794,2]
[346335539,1734898251810,-500.0,0.00014794,2]
[346335541,1734898251820,-500.0,0.00014794,2]
[346335543,1734898251829,-821.27,0.00014794,2]
[346335545,1734898251839,-975.47,0.00014794,2]
[346335547,1734898251850,-630.05,0.00014794,2]
[346335549,1734898251860,-1895.21,0.00014794,2]
[346335551,1734898251869,-500.0,0.00014794,2]
[346335554,1734898251879,-177.409442,0.00014794,2]
[346335556,1734898251889,-177.409442,0.00014794,2]
[346335558,1734898251898,-177.409442,0.00014794,2]
[346335559,1734898251908,-382.15829942,0.00014794,2]
[346335562,1734898251919,-500.0,0.00014794,2]
[346335564,1734898251929,-177.409442,0.00014794,2]
[346335566,1734898251938,-177.409442,0.00014794,2]
[346335568,1734898251947,-500.0,0.00014794,2]
[346335570,1734898251961,-177.409447,0.00014794,2]
[346335572,1734898251971,-221.49031157,0.00014794,2]
[346335573,1734898251980,-500.0,0.00014794,2]
[346335575,1734898251990,-940.44,0.00014794,2]
[346335578,1734898251999,-1313.77,0.00014794,2]
[346335580,1734898252009,-664.22,0.00014794,2]
[346335582,1734898252019,-500.0,0.00014794,2]
[346335584,1734898252029,-1144.59,0.00014794,2]
[346335586,1734898252039,-2213.08,0.00014794,2]
[346335588,1734898252047,-151.0,0.00014794,2]
[346335590,1734898252057,-151.0,0.00014794,2]
[346335592,1734898252067,-151.0,0.00014794,2]
[346335594,1734898252076,-5890.66,0.00014794,2]
[346335596,1734898252086,-573.25,0.00014794,2]
[346335598,1734898252095,-151.0,0.00014794,2]
[346335600,1734898252104,-500.0,0.00014794,2]
[346335602,1734898252114,-285.204278,0.00014794,2]
[346335603,1734898252124,-4883.13,0.00014794,2]
[346335604,1734898252133,-1047.64,0.00014794,2]
[346335605,1734898252143,-500.0,0.00014794,2]
[346335606,1734898252153,-4342.66,0.00014794,2]
[346335607,1734898252162,-607.58,0.00014794,2]
[346335608,1734898252172,-1227.82,0.00014794,2]
[346335609,1734898252182,-500.0,0.00014794,2]
[346335610,1734898252192,-500.0,0.00014794,2]
[346335612,1734898252205,-1375.84,0.00014794,2]
[346335614,1734898252215,-2388.17,0.00014794,2]
[346335615,1734898252225,-2216.78,0.00014794,2]
[346335616,1734898252235,-1350.81,0.00014794,2]
[346335617,1734898252246,-500.0,0.00014794,2]
[346335618,1734898252258,-1049.15,0.00014794,2]
[346335619,1734898252269,-151.0,0.00014794,2]
[346335620,1734898252280,-564.94132984,0.000149,2]
[346335621,1734898252290,-297.8839025,0.000149,2]
[346335622,1734898252300,-297.88390248,0.000149,2]
[346335623,1734898252310,-297.88390248,0.000149,2]
[346335624,1734898252323,-153.2926313,0.00014986,2]
[346335625,1734898252333,-421.3214863,0.00014986,2]
[346335626,1734898252343,-2976.58748693,0.00015,2]
[346335627,1734898252353,-840.62676821,0.00015,2]
[346335628,1734898252363,-5957.49598619,0.00015,7]
[346335629,1734898252372,-1000.0,0.00015,15]
[346335630,1734898252382,-103825.93885179,0.00015,2]
[346335631,1734898252391,-151.0,0.00015,2]
[346335632,1734898252402,-311.638868,0.00015,2]
[346335633,1734898252412,-311.638878,0.00015,2]
[346335634,1734898252421,-151.0,0.00015,2]
[346335635,1734898252431,-151.0,0.00015,2]
[346335636,1734898252441,-258.127944,0.00015,2]
[346335637,1734898252613,-258.127946,0.00015,2]
[346335638,1734898252623,-437.351639,0.00015,2]
[346335639,1734898252632,-437.351639,0.00015,2]
[346335640,1734898252641,-151.0,0.00015,2]
[346335641,1734898252650,-420.0,0.0001501,2]
[346335642,1734898252659,-420.0,0.00015067,2]
[346335643,1734898252669,-500.0,0.00015068,2]
[346335644,1734898252678,-221.10988201,0.00015068,2]
[346335645,1734898252687,-500.0,0.00015068,2]
[346335646,1734898252697,-151.0,0.00015068,2]
[346335647,1734898252707,-151.0,0.00015068,2]
[346335648,1734898252717,-151.0,0.00015068,2]
[346335649,1734898252726,-247.052017,0.00015068,2]
[346335650,1734898252735,-151.0,0.00015068,2]
[346335651,1734898252744,-151.0,0.00015068,2]
[346335652,1734898252753,-500.0,0.00015068,2]
[346335653,1734898252763,-709.72,0.00015068,2]
[346335654,1734898252772,-564.63,0.00015068,2]
[346335655,1734898252781,-500.0,0.00015068,2]
[346335656,1734898252791,-500.0,0.00015068,2]
[346335657,1734898252800,-500.0,0.00015068,2]
[346335658,1734898252809,-500.0,0.00015068,2]
[346335659,1734898252818,-596.88,0.00015068,2]
[346335660,1734898252827,-509.11,0.00015068,2]
[346335661,1734898252836,-500.0,0.00015068,2]
[346335662,1734898252845,-500.0,0.00015068,2]
[346335663,1734898252854,-349.07387651,0.00015068,2]
[346335664,1734898252863,-508.19,0.00015068,2]
[346335665,1734898252872,-500.0,0.00015068,2]
[346335666,1734898252882,-500.0,0.00015068,2]
[346335667,1734898252891,-500.0,0.00015068,2]
[346335668,1734898252901,-500.0,0.00015068,2]
[346335669,1734898252909,-500.0,0.00015068,2]
[346335670,1734898252919,-500.0,0.00015068,2]
[346335671,1734898252928,-500.0,0.00015068,2]
[346335672,1734898252938,-500.0,0.00015068,2]
[346335673,1734898252947,-996.41,0.00015068,2]
[346335674,1734898252958,-500.0,0.00015068,2]
[346335675,1734898252968,-552.02,0.00015068,2]
[346335676,1734898252977,-500.0,0.00015068,2]
[346335677,1734898252986,-896.76,0.00015068,2]
[346335678,1734898252995,-643.06,0.00015068,2]
[346335679,1734898253005,-622.12,0.00015068,2]
[346335680,1734898253014,-544.82,0.00015068,2]
[346335681,1734898253024,-500.0,0.00015068,2]
[346335682,1734898253034,-500.0,0.00015068,2]
[346335683,1734898253043,-151.139843,0.00015068,2]
[346335684,1734898253053,-514.67,0.00015068,2]
[346335685,1734898253062,-151.139843,0.00015068,2]
[346335686,1734898253072,-500.0,0.00015068,2]
[346335687,1734898253081,-1747.14,0.00015068,2]
[346335688,1734898253091,-638.51,0.00015068,2]
[346335689,1734898253100,-500.0,0.00015068,2]
[346335690,1734898253116,-500.0,0.00015068,2]
[346335691,1734898253125,-500.0,0.00015068,2]
[346335692,1734898253134,-500.0,0.00015068,2]
[346335693,1734898253144,-500.0,0.00015068,2]
[346335694,1734898253153,-1146.78,0.00015068,2]
[346335695,1734898253162,-1384.02,0.00015068,2]
[346335696,1734898253172,-500.0,0.00015068,2]
[346335697,1734898253180,-204.29,0.00015068,2]
[346335698,1734898253190,-1829.53,0.00015068,2]
[346335699,1734898253199,-500.0,0.00015068,2]
[346335700,1734898253210,-620.23,0.00015068,2]
[346335701,1734898253220,-1154.81,0.00015068,2]
[346335702,1734898253229,-1071.92,0.00015068,2]
[346335703,1734898253238,-3377.75,0.00015068,2]
[346335704,1734898253247,-677.42,0.00015068,2]
[346335705,1734898253257,-500.0,0.00015068,2]
[346335706,1734898253266,-674.98,0.00015068,2]
[346335707,1734898253276,-1484.35,0.00015068,2]
[346335708,1734898253285,-500.0,0.00015068,2]
[346335709,1734898253295,-500.0,0.00015068,2]
[346335710,1734898253304,-500.0,0.00015068,2]
[346335711,1734898253313,-915.03,0.00015068,2]
[346335712,1734898253322,-1120.23,0.00015068,2]
[346335713,1734898253332,-500.0,0.00015068,2]
[346335714,1734898253341,-500.0,0.00015068,2]
[346335715,1734898253351,-645.28,0.00015068,2]
[346335716,1734898253361,-500.0,0.00015068,2]
[346335717,1734898253370,-966.84,0.00015068,2]
[346335718,1734898253380,-500.0,0.00015068,2]
[346335719,1734898253390,-671.49,0.00015068,2]
[346335720,1734898253400,-999.5,0.00015068,2]
[346335721,1734898253409,-173.89999571,0.00015068,2]
[346335722,1734898253420,-500.0,0.00015068,2]
[346335723,1734898253430,-1014.49,0.00015068,2]
[346335724,1734898253440,-500.0,0.00015068,2]
[346335725,1734898253449,-1300.26,0.00015068,2]
[346335726,1734898253459,-500.0,0.00015068,2]
[346335727,1734898253469,-559.61,0.00015068,2]
[346335728,1734898253478,-962.09,0.00015068,2]
[346335729,1734898253487,-500.0,0.00015068,2]
[346335730,1734898253496,-500.0,0.00015068,2]
[346335731,1734898253505,-500.0,0.00015068,2]
[346335732,1734898253514,-2050.24,0.00015068,2]
[346335733,1734898253527,-500.0,0.00015068,2]
[346335734,1734898253536,-500.0,0.00015068,2]
[346335735,1734898253545,-500.0,0.00015068,2]
[346335736,1734898253555,-1840.32,0.00015068,2]
[346335737,1734898253565,-221.49195019,0.00015068,2]
[346335738,1734898253575,-500.0,0.00015068,2]
[346335739,1734898253584,-619.23,0.00015068,2]
[346335740,1734898253593,-500.0,0.00015068,2]
[346335741,1734898253604,-1286.39,0.00015068,2]
[346335742,1734898253615,-500.0,0.00015068,2]
[346335743,1734898253624,-1768.71,0.00015068,2]
[346335744,1734898253633,-1426.45,0.00015068,2]
[346335745,1734898253643,-564.33,0.00015068,2]
[346335746,1734898253652,-1742.18,0.00015068,2]
[346335747,1734898253662,-500.0,0.00015068,2]
[346335748,1734898253671,-500.0,0.00015068,2]
[346335749,1734898253680,-500.0,0.00015068,2]
[346335750,1734898253689,-500.0,0.00015068,2]
[346335751,1734898253699,-500.0,0.00015068,2]
[346335752,1734898253710,-1026.24,0.00015068,2]
[346335753,1734898253719,-500.0,0.00015068,2]
[346335754,1734898253728,-638.78,0.00015068,2]
[346335755,1734898253738,-524.92,0.00015068,2]
[346335756,1734898253747,-500.0,0.00015068,2]
[346335757,1734898253756,-2282.56,0.00015068,2]
[346335758,1734898253766,-930.06,0.00015068,2]
[346335759,1734898253775,-500.0,0.00015068,2]
[346335760,1734898253784,-568.29,0.00015068,2]
[346335761,1734898253793,-1232.72,0.00015068,2]
[346335762,1734898253803,-659.14,0.00015068,2]
[346335763,1734898253812,-1396.28,0.00015068,2]
[346335764,1734898253821,-500.0,0.00015068,2]
[346335765,1734898253831,-400.13988074,0.00015068,2]
[346335766,1734898253839,-500.0,0.00015068,2]
[346335767,1734898253849,-500.0,0.00015068,2]
[346335768,1734898253858,-500.0,0.00015068,2]
[346335769,1734898253867,-500.0,0.00015068,2]
[346335770,1734898253876,-20933.72,0.00015068,2]
[346335771,1734898253885,-1915.93,0.00015068,2]
[346335772,1734898253895,-500.0,0.00015068,2]
[346335773,1734898253904,-500.0,0.00015068,2]
[346335774,1734898253913,-11586.64,0.00015068,2]
[346335775,1734898253923,-3634.74,0.00015068,2]
[346335776,1734898253932,-735.37,0.00015068,2]
[346335777,1734898253941,-500.0,0.00015068,2]
[346335778,1734898253950,-609.44,0.00015068,2]
[346335779,1734898253960,-2358.12,0.00015068,2]
[346335780,1734898253970,-16117.57,0.00015068,2]
[346335781,1734898253979,-500.0,0.00015068,2]
[346335782,1734898253988,-649.01,0.00015068,2]
[346335783,1734898253997,-993.7,0.00015068,2]
[346335784,1734898254006,-8248.44,0.00015068,2]
[346335785,1734898254015,-500.0,0.00015068,2]
[346335786,1734898254024,-2313.9,0.00015068,2]
[346335787,1734898254033,-50269.66,0.00015068,2]
[346335788,1734898254043,-500.0,0.00015068,2]
[346335789,1734898254052,-2571.7,0.00015068,2]
[346335790,1734898254061,-500.0,0.00015068,2]
[346335791,1734898254070,-500.0,0.00015068,2]
[346335792,1734898254079,-500.0,0.00015068,2]
[346335793,1734898254088,-500.0,0.00015068,2]
[346335794,1734898254097,-540.65,0.00015068,2]
[346335795,1734898254107,-1127.35,0.00015068,2]
[346335796,1734898254116,-500.0,0.00015068,2]
[346335797,1734898254125,-500.0,0.00015068,2]
[346335798,1734898254134,-821.27,0.00015068,2]
[346335799,1734898254144,-975.47,0.00015068,2]
[346335800,1734898254153,-630.05,0.00015068,2]
[346335801,1734898254163,-1895.21,0.00015068,2]
[346335802,1734898254172,-500.0,0.00015068,2]
[346335803,1734898254181,-500.0,0.00015068,2]
[346335804,1734898254190,-500.0,0.00015068,2]
[346335805,1734898254199,-500.0,0.00015068,2]
[346335806,1734898254210,-940.44,0.00015068,2]
[346335807,1734898254219,-1313.77,0.00015068,2]
[346335808,1734898254228,-664.22,0.00015068,2]
[346335809,1734898254237,-500.0,0.00015068,2]
[346335810,1734898254245,-2213.08,0.00015068,2]
[346335811,1734898254255,-1144.59,0.00015068,2]